bitfinex/quotes_BTCUSD_20251205
["timestamp","ask_amount","ask_price","bid_price","bid_amount"]
[1764972092156,0.56599128,89001.0,89000.0,10.03795399]
[1764972092157,0.54811128,89001.0,89000.0,10.03795399]
[1764972092388,0.56599128,89001.0,89000.0,10.03795399]
[1764972092751,0.57599128,89001.0,89000.0,10.03895399]
[1764972092951,0.55811128,89001.0,89000.0,10.03895399]
[1764972093196,0.56599128,89001.0,89000.0,10.03795399]
[1764972093417,0.00039471,89001.0,89000.0,10.03874]
[1764972093588,0.00739471,89001.0,89000.0,10.06204399]
[1764972094421,0.00039471,89001.0,89000.0,10.06104399]
[1764972094622,0.00539471,89001.0,89000.0,10.03974]
[1764972094804,0.00539471,89001.0,89000.0,10.06204399]
[1764972095437,0.00539471,89001.0,89000.0,10.04062338]
[1764972095670,0.00539471,89001.0,89000.0,10.06292737]
[1764972095873,0.00739471,89001.0,89000.0,10.06292737]
[1764972098842,0.00539471,89001.0,89000.0,10.06292737]
[1764972099420,0.00039471,89001.0,89000.0,10.06192737]
[1764972105825,0.22511128,89001.0,89000.0,10.06192737]
[1764972106174,0.00039471,89001.0,89000.0,10.28664647]
[1764972106927,0.01123204,89031.0,89028.0,0.02230399]
[1764972107110,0.2246459,89029.0,89028.0,0.02242287]
[1764972107311,0.23586795,89033.0,89032.0,0.02230399]
[1764972107713,0.23586795,89033.0,89032.0,0.06144399]
[1764972108225,0.01123115,89038.0,89037.0,0.02230399]
[1764972108532,0.22464085,89031.0,89030.0,0.01166]
[1764972109358,0.22625372,89031.0,89030.0,0.02812]
[1764972109914,0.22625372,89031.0,89030.0,0.05277]
[1764972110557,0.22625372,89031.0,89030.0,0.02812]
[1764972110851,0.22825372,89031.0,89030.0,0.02812]
[1764972112281,0.23325372,89031.0,89030.0,0.02912]
[1764972112481,0.23325372,89031.0,89030.0,0.05142399]
[1764972112707,0.23325372,89031.0,89030.0,0.07607399]
[1764972113683,0.23164085,89031.0,89030.0,0.07607399]
[1764972119951,0.23325372,89031.0,89030.0,0.01266]
[1764972120152,0.23325372,89031.0,89030.0,0.05377]
[1764972120431,0.23325372,89031.0,89030.0,0.07607399]
[1764972127035,0.00861287,89031.0,89030.0,0.30071736]
[1764972127281,0.007,89031.0,89030.0,0.27841337]
[1764972127482,0.007,89031.0,89030.0,0.30071736]
[1764972128846,0.005,89031.0,89030.0,0.30071736]
[1764972129246,0.001,89031.0,89030.0,0.29971736]
[1764972129806,0.23584344,89044.0,89043.0,0.02230399]
[1764972129954,0.23584344,89044.0,89043.0,0.03880399]
[1764972130156,0.23584344,89044.0,89043.0,0.06356399]
[1764972130574,0.01123015,89046.0,89045.0,0.02230399]
[1764972130949,0.23583316,89046.0,89045.0,0.03880399]
[1764972131162,0.23583316,89046.0,89045.0,0.06356399]
[1764972132204,0.23583316,89046.0,89043.0,0.01223052]
[1764972132205,0.22460647,89045.0,89043.0,0.001]
[1764972132411,0.57568405,89044.0,89043.0,0.001]
[1764972132556,0.54922092,89044.0,89043.0,0.001]
[1764972132961,0.01123128,89037.0,89036.0,0.02230399]
[1764972133164,0.23585699,89037.0,89036.0,0.02230399]
[1764972133415,0.23585699,89037.0,89036.0,0.03880399]
[1764972133627,0.23585699,89037.0,89036.0,0.06356399]
[1764972134494,0.23685699,89037.0,89036.0,0.06356399]
[1764972141787,0.001,89037.0,89036.0,0.28819223]
[1764972148371,0.23586786,89033.0,89032.0,0.02230399]
[1764972148570,0.01123179,89033.0,89032.0,0.02230399]
[1764972148751,0.23586759,89033.0,89032.0,0.03880399]
[1764972149153,0.23586759,89033.0,89032.0,0.06356399]
[1764972149773,0.23686759,89033.0,89032.0,0.06356399]
[1764972150290,0.2256358,89033.0,89032.0,0.06356399]
[1764972150488,0.2246358,89033.0,89032.0,0.06356399]
[1764972150912,0.2256358,89033.0,89032.0,0.06356399]
[1764972151951,0.001,89033.0,89032.0,0.06356399]
[1764972152815,0.001,89033.0,89032.0,0.28820232]
[1764972153175,0.001,89033.0,89032.0,0.06356399]
[1764972153523,0.2256358,89033.0,89032.0,0.06356399]
[1764972161630,0.2256358,89033.0,89032.0,0.03880399]
[1764972162598,0.2256358,89033.0,89028.0,0.00011888]
[1764972162599,0.5476459,89029.0,89028.0,0.02242287]
[1764972163104,0.2246459,89029.0,89028.0,0.06120287]
[1764972163338,0.2424859,89029.0,89028.0,0.06120287]
[1764972163916,0.2454859,89029.0,89028.0,0.06120287]
[1764972164790,0.2464859,89029.0,89028.0,0.06120287]
[1764972165423,0.2464859,89029.0,89028.0,0.03797287]
[1764972165909,0.5694859,89029.0,89028.0,0.00011888]
[1764972166315,0.5694859,89029.0,89028.0,0.01566888]
[1764972166958,0.5516459,89029.0,89028.0,0.01566888]
[1764972170407,0.5516459,89029.0,89028.0,0.03797287]
[1764972172494,0.5516459,89029.0,89028.0,0.02242287]
[1764972172714,0.5516459,89029.0,89028.0,0.00011888]
[1764972174196,0.5694859,89029.0,89028.0,0.03794287]
[1764972174620,0.5694859,89029.0,89028.0,0.02242287]
[1764972177669,0.5516459,89029.0,89028.0,0.06272287]
[1764972177845,0.5694859,89029.0,89028.0,0.06272287]
[1764972178371,0.5694859,89029.0,89028.0,0.03794287]
[1764972180573,1.0194859,89029.0,89028.0,0.02242287]
[1764972181470,1.0016459,89029.0,89028.0,0.03794287]
[1764972181670,0.454,89029.0,89028.0,0.2650673]
[1764972181842,0.404,89029.0,89028.0,0.28737129]
[1764972182167,0.404,89029.0,89028.0,0.2650673]
[1764972182580,0.404,89029.0,89028.0,0.28737129]
[1764972185626,0.404,89029.0,89028.0,0.28837129]
[1764972185780,0.404,89029.0,89028.0,0.29037129]
[1764972193162,0.404,89029.0,89028.0,0.43917129]
[1764972197944,0.404,89029.0,89028.0,0.50169428]
[1764972198576,0.404,89029.0,89028.0,1.16711428]
[1764972201432,0.07679,89029.0,89028.0,1.49011428]
[1764972202339,0.07679,89029.0,89028.0,1.48711428]
[1764972202564,0.07679,89029.0,89028.0,1.49211428]
[1764972202771,0.07679,89029.0,89028.0,1.48811428]
[1764972202895,0.07679,89029.0,89028.0,1.48711428]
[1764972203103,0.07779,89029.0,89028.0,1.49211428]
[1764972203345,0.07779,89029.0,89028.0,1.49411428]
[1764972203812,0.07465132,89029.0,89028.0,1.49411428]
[1764972204957,0.01122674,89073.0,89069.0,0.22454501]
[1764972205249,0.01122674,89073.0,89067.0,0.0112275]
[1764972205250,0.22615032,89072.0,89071.0,0.02230399]
[1764972205452,0.00161287,89072.0,89071.0,0.02230399]
[1764972205653,0.22615032,89072.0,89071.0,0.02230399]
[1764972205857,0.00161287,89072.0,89071.0,0.06168399]
[1764972206060,0.00161287,89072.0,89071.0,0.00011888]
[1764972206237,0.00161287,89072.0,89071.0,0.02242287]
[1764972206663,0.22615032,89072.0,89071.0,0.06180287]
[1764972206846,0.23315032,89072.0,89071.0,0.06280287]
[1764972207052,0.00861287,89072.0,89071.0,0.06280287]
[1764972207434,0.23315032,89072.0,89071.0,0.00111888]
[1764972207661,0.24894032,89072.0,89071.0,0.00111888]
[1764972208078,0.27376032,89072.0,89071.0,0.00111888]
[1764972208292,0.59676032,89072.0,89071.0,0.00111888]
[1764972208669,0.22457779,89056.0,89055.0,0.03430609]
[1764972208789,0.22457779,89056.0,89055.0,0.03442506]
[1764972208988,0.22457779,89056.0,89055.0,0.07380506]
[1764972209424,0.22457779,89056.0,89055.0,0.09063828]
[1764972210361,0.22557779,89056.0,89055.0,0.09063828]
[1764972218407,0.23581262,89054.0,89053.0,0.02230399]
[1764972218619,0.23581262,89054.0,89053.0,0.02242223]
[1764972220068,0.23781262,89054.0,89053.0,0.02242223]
[1764972220663,0.002,89054.0,89053.0,0.24700758]
[1764972221012,0.002,89054.0,89053.0,0.22470359]
[1764972221222,0.22658283,89054.0,89053.0,0.02242223]
[1764972224299,0.002,89054.0,89053.0,0.02242223]
[1764972224501,0.002,89054.0,89053.0,0.24700758]
[1764972225362,0.002,89054.0,89053.0,0.02242223]
[1764972225912,0.26586283,89054.0,89053.0,0.02242223]
[1764972226538,0.26586283,89054.0,89053.0,0.00011824]
[1764972227982,0.58886283,89054.0,89053.0,0.00011824]
[1764972228767,0.58686283,89054.0,89053.0,0.00011824]
[1764972229190,0.58886283,89054.0,89053.0,0.00011824]
[1764972233004,0.325,89054.0,89053.0,0.02932223]
[1764972233229,0.002,89054.0,89053.0,0.28150758]
[1764972233908,0.002,89054.0,89053.0,0.34403057]
[1764972234909,0.002,89054.0,89053.0,0.34503057]
[1764972235116,0.00099999,89070.0,89069.0,0.246849]
[1764972235313,0.00099999,89070.0,89069.0,0.26368222]
[1764972236660,0.00299999,89070.0,89069.0,0.26368222]
[1764972237696,0.002,89070.0,89069.0,0.27748222]
[1764972238268,0.002,89070.0,89069.0,0.28438222]
[1764972239048,0.002,89070.0,89069.0,0.04603721]
[1764972240329,0.002,89070.0,89069.0,0.27058222]
[1764972240546,0.22654249,89070.0,89069.0,0.03913721]
[1764972240901,0.26593249,89070.0,89069.0,0.01683322]
[1764972241096,0.26593249,89070.0,89069.0,0.29128222]
[1764972241097,0.002,89070.0,89069.0,0.29128222]
[1764972241331,0.002,89070.0,89069.0,0.35380521]
[1764972243337,0.01122447,89091.0,89090.0,0.02230399]
[1764972243690,0.23571403,89091.0,89090.0,0.02230399]
[1764972244098,0.01122447,89091.0,89090.0,0.02230399]
[1764972244575,0.01361957,89091.0,89090.0,0.02230399]
[1764972244892,0.23810913,89091.0,89090.0,0.02230399]
[1764972245393,0.24410913,89091.0,89090.0,0.02230399]
[1764972245804,0.0083951,89091.0,89090.0,0.26059607]
[1764972245999,0.0083951,89091.0,89090.0,0.23829208]
[1764972246199,0.0083951,89091.0,89090.0,0.27439607]
[1764972246573,0.0063951,89091.0,89090.0,0.27439607]
[1764972247489,0.0063951,89091.0,89090.0,0.26059607]
[1764972248228,0.0003951,89091.0,89090.0,0.26059607]
[1764972248581,0.0023951,89091.0,89090.0,0.26059607]
[1764972248935,0.0003951,89091.0,89090.0,0.26059607]
[1764972249341,0.24000466,89091.0,89090.0,0.02330399]
[1764972249900,0.24000466,89091.0,89090.0,0.02230399]
[1764972250086,0.22488466,89091.0,89090.0,0.02330399]
[1764972250716,0.22488466,89091.0,89090.0,0.02230399]
[1764972252582,0.0003951,89091.0,89090.0,0.27439607]
[1764972252904,0.0003951,89091.0,89090.0,0.42319607]
[1764972253866,0.0003951,89091.0,89090.0,0.42419607]
[1764972254827,0.0003951,89091.0,89090.0,0.42519607]
[1764972257326,0.0003951,89091.0,89090.0,0.17310399]
[1764972257555,0.0003951,89091.0,89090.0,0.39759607]
[1764972258340,0.0003951,89091.0,89090.0,0.39659607]
[1764972258543,0.0003951,89091.0,89090.0,0.24679607]
[1764972259550,0.22649753,89091.0,89090.0,0.02230399]
[1764972259754,0.24161753,89091.0,89090.0,0.02230399]
[1764972261687,0.24161753,89091.0,89087.0,0.01683322]
[1764972261688,0.26495753,89091.0,89087.0,0.01683322]
[1764972261889,0.26495753,89091.0,89072.0,0.0069]
[1764972261890,0.235754,89076.0,89075.0,0.02230399]
[1764972262099,0.23575372,89076.0,89075.0,0.02230399]
[1764972262945,0.23575162,89077.0,89074.0,0.01122662]
[1764972263137,0.23575162,89077.0,89076.0,0.02230399]
[1764972265160,0.23675162,89077.0,89076.0,0.02230399]
[1764972267188,0.001,89077.0,89076.0,0.02230399]
[1764972268038,0.22552484,89077.0,89076.0,0.02230399]
[1764972268255,0.22453298,89074.0,89073.0,0.02230399]
[1764972268533,0.23651298,89074.0,89073.0,0.02230399]
[1764972268894,0.27497298,89074.0,89073.0,0.02230399]
[1764972269094,0.01198,89074.0,89073.0,0.24683892]
[1764972269483,0.23575621,89076.0,89075.0,0.02230399]
[1764972269484,0.23575372,89076.0,89075.0,0.02230399]
[1764972271571,0.23675372,89076.0,89075.0,0.02230399]
[1764972273393,0.01222636,89076.0,89075.0,0.02230399]
[1764972273629,0.001,89076.0,89075.0,0.02230399]
[1764972273807,0.22552736,89076.0,89075.0,0.02230399]
[1764972276009,0.001,89076.0,89075.0,0.02230399]
[1764972276204,0.001,89076.0,89075.0,0.24683388]
[1764972276410,0.22552736,89076.0,89075.0,0.02230399]
[1764972277085,0.001,89076.0,89075.0,0.27443388]
[1764972277867,0.01367287,89088.0,89087.0,0.02230399]
[1764972278069,0.23816999,89088.0,89087.0,0.02230399]
[1764972278282,0.25412999,89088.0,89087.0,0.02230399]
[1764972278478,0.27775999,89088.0,89087.0,0.02230399]
[1764972279345,0.27975999,89088.0,89087.0,0.02230399]
[1764972280619,0.27975999,89088.0,89077.0,0.02230399]
[1764972280620,0.01122611,89078.0,89077.0,0.02230399]
[1764972280818,0.01222585,89080.0,89079.0,0.02230399]
[1764972280819,0.00099999,89080.0,89079.0,0.02230399]
[1764972281032,0.00099999,89080.0,89079.0,0.24682379]
[1764972284244,0.01206,89081.0,89080.0,0.24682127]
[1764972284451,0.23573591,89083.0,89080.0,0.24682127]
[1764972284452,0.23817009,89088.0,89083.0,0.01122548]
[1764972284622,0.00161287,89088.0,89087.0,0.24680363]
[1764972285339,0.0003951,89091.0,89090.0,0.02230399]
[1764972285681,0.0003951,89091.0,89090.0,0.26059607]
[1764972285892,0.0003951,89091.0,89090.0,0.27439607]
[1764972287612,0.0003951,89091.0,89090.0,0.26059607]
[1764972288433,0.0003951,89091.0,89090.0,0.26259607]
[1764972288782,0.0003951,89091.0,89090.0,0.26159607]
[1764972289077,0.0003951,89091.0,89090.0,0.26059607]
[1764972290027,0.0003951,89091.0,89090.0,0.26159607]
[1764972290605,0.0003951,89091.0,89090.0,0.26259607]
[1764972291572,0.0003951,89091.0,89090.0,0.27639607]
[1764972293791,0.0003951,89091.0,89090.0,0.26259607]
[1764972294739,0.0003951,89091.0,89090.0,0.27639607]
[1764972300128,0.0003951,89091.0,89090.0,0.26259607]
[1764972300284,0.0003951,89091.0,89090.0,0.27639607]
[1764972300494,0.0003951,89091.0,89090.0,0.26259607]
[1764972301175,0.0003951,89091.0,89090.0,0.27639607]
[1764972306179,0.0003951,89091.0,89090.0,0.02430399]
[1764972306588,0.22488466,89091.0,89090.0,0.02430399]
[1764972306934,0.22488466,89091.0,89090.0,0.02330399]
[1764972306935,0.0003951,89091.0,89090.0,0.02330399]
[1764972307148,0.0003951,89091.0,89090.0,0.24779607]
[1764972307360,0.0003951,89091.0,89090.0,0.24879607]
[1764972307786,0.22488466,89091.0,89090.0,0.02430399]
[1764972308607,0.22488466,89091.0,89090.0,0.02330399]
[1764972309041,0.0003951,89091.0,89090.0,0.27539607]
[1764972309429,0.0003951,89091.0,89090.0,0.26159607]
[1764972309796,0.0003951,89091.0,89090.0,0.26259607]
[1764972309997,0.0003951,89091.0,89090.0,0.27639607]
[1764972314802,0.0003951,89091.0,89090.0,0.26259607]
[1764972315972,0.0003951,89091.0,89090.0,0.27639607]
[1764972316962,0.0003951,89091.0,89090.0,0.26259607]
[1764972317165,0.22488466,89091.0,89090.0,0.02430399]
[1764972317400,0.0003951,89091.0,89090.0,0.02430399]
[1764972317827,0.22488466,89091.0,89090.0,0.02430399]
[1764972318030,0.24085466,89091.0,89090.0,0.02430399]
[1764972318227,0.22488466,89091.0,89090.0,0.02430399]
[1764972318762,0.0003951,89091.0,89090.0,0.02430399]
[1764972319170,0.0003951,89091.0,89090.0,0.24879607]
[1764972320535,0.0003951,89091.0,89090.0,0.02430399]
[1764972320727,0.0003951,89091.0,89090.0,0.24879607]
[1764972327614,0.0003951,89091.0,89090.0,0.26259607]
[1764972328420,0.0003951,89091.0,89090.0,0.02430399]
[1764972328629,0.26390466,89091.0,89090.0,0.02430399]
[1764972329370,0.24085466,89091.0,89090.0,0.02430399]
[1764972331330,0.26390466,89091.0,89090.0,0.02430399]
[1764972331547,0.26551753,89091.0,89090.0,0.002]
[1764972333634,0.24246753,89091.0,89090.0,0.002]
[1764972339629,0.26668753,89091.0,89090.0,0.002]
[1764972340190,0.24246753,89091.0,89090.0,0.002]
[1764972341387,0.26668753,89091.0,89090.0,0.002]
[1764972343386,0.26668753,89091.0,89090.0,0.02430399]
[1764972343589,0.26668753,89091.0,89090.0,0.002]
[1764972344153,0.24246753,89091.0,89090.0,0.02430399]
[1764972344745,0.24246753,89091.0,89090.0,0.02330399]
[1764972344961,0.24246753,89091.0,89090.0,0.02230399]
[1764972345175,0.01997797,89091.0,89090.0,0.02230399]
[1764972345366,0.00200797,89091.0,89090.0,0.24679607]
[1764972346620,0.00300797,89091.0,89090.0,0.02230399]
[1764972346858,0.22749753,89091.0,89090.0,0.02230399]
[1764972347007,0.22649753,89091.0,89090.0,0.02230399]
[1764972347854,0.22449964,89087.0,89086.0,0.03913721]
[1764972348055,0.01122473,89089.0,89088.0,0.02230399]
[1764972348409,0.23572127,89089.0,89088.0,0.02230399]
[1764972348820,0.01122473,89089.0,89088.0,0.02230399]
[1764972349081,0.22449964,89087.0,89086.0,0.03913721]
[1764972349199,0.25316964,89087.0,89086.0,0.03913721]
[1764972349398,0.27701964,89087.0,89086.0,0.03913721]
[1764972350210,0.27701964,89087.0,89075.0,0.02230399]
[1764972350211,0.22452736,89076.0,89075.0,0.02230399]
[1764972350412,0.25319736,89076.0,89075.0,0.02230399]
[1764972350647,0.27704736,89076.0,89075.0,0.02230399]
[1764972352337,0.27704736,89076.0,89075.0,0.02330399]
[1764972353292,0.27704736,89076.0,89075.0,0.001]
[1764972355518,0.25319736,89076.0,89075.0,0.001]
[1764972355725,0.27704736,89076.0,89075.0,0.001]
[1764972356327,0.25319736,89076.0,89075.0,0.001]
[1764972356898,0.27704736,89076.0,89075.0,0.001]
[1764972357515,0.25319736,89076.0,89075.0,0.001]
[1764972358360,0.25319736,89076.0,89075.0,0.02330399]
[1764972361778,0.02230399,89089.0,89088.0,0.02230399]
[1764972361976,0.25802826,89089.0,89088.0,0.03913721]
[1764972362187,0.03352872,89089.0,89088.0,0.03913721]
[1764972362354,0.02230399,89089.0,89088.0,0.27743433]
[1764972362717,0.01323244,89091.0,89090.0,0.02230399]
[1764972362919,0.00200797,89091.0,89090.0,0.24679607]
[1764972363323,0.00200797,89091.0,89090.0,0.22566218]
[1764972364678,0.00300797,89091.0,89090.0,0.22566218]
[1764972365237,0.00300797,89091.0,89090.0,0.02230399]
[1764972365446,0.04705916,89091.0,89090.0,0.24679607]
[1764972365607,0.00300797,89091.0,89090.0,0.24679607]
[1764972365807,0.00300797,89091.0,89090.0,0.02230399]
[1764972366025,0.22749753,89091.0,89090.0,0.02230399]
[1764972366234,0.25555872,89091.0,89090.0,0.02230399]
[1764972366413,0.03106916,89091.0,89090.0,0.02230399]
[1764972366816,0.25555872,89091.0,89090.0,0.02230399]
[1764972367127,0.00300797,89091.0,89090.0,0.24679607]
[1764972369026,0.00300797,89091.0,89090.0,0.26059607]
[1764972369244,0.00300797,89091.0,89090.0,0.24679607]
[1764972370071,0.00200797,89091.0,89090.0,0.24679607]
[1764972371123,0.0003951,89091.0,89090.0,0.24679607]
[1764972371324,0.0003951,89091.0,89090.0,0.27539607]
[1764972371746,0.0003951,89091.0,89090.0,0.25309208]
[1764972371958,0.0003951,89091.0,89090.0,0.27539607]
[1764972372370,0.0003951,89091.0,89090.0,0.26159607]
[1764972380158,0.0003951,89091.0,89090.0,0.24779607]
[1764972380949,0.0003951,89091.0,89090.0,0.22549208]
[1764972381150,0.0003951,89091.0,89090.0,0.24779607]
[1764972383321,0.0003951,89091.0,89090.0,0.26159607]
[1764972384561,0.0003951,89091.0,89090.0,0.27539607]
[1764972385430,0.0003951,89091.0,89090.0,0.37161059]
[1764972386812,0.0003951,89091.0,89090.0,0.38937059]
[1764972387021,0.0003951,89091.0,89090.0,0.39137059]
[1764972387379,0.0003951,89091.0,89090.0,0.39237059]
[1764972387766,0.0003951,89091.0,89090.0,0.39137059]
[1764972388190,0.0003951,89091.0,89090.0,0.39337059]
[1764972388545,0.0003951,89091.0,89090.0,0.69861059]
[1764972388748,0.0003951,89091.0,89090.0,0.71637059]
[1764972390258,0.0003951,89091.0,89090.0,0.69561059]
[1764972390502,0.0003951,89091.0,89090.0,0.71137059]
[1764972390711,0.0003951,89091.0,89090.0,0.71537059]
[1764972390870,0.0003951,89091.0,89090.0,0.71737059]
[1764972391414,0.0003951,89091.0,89090.0,1.46593937]
[1764972392740,0.0003951,89091.0,89090.0,1.38030659]
[1764972393049,0.0003951,89091.0,89090.0,1.4487772]
[1764972393255,0.0002,89120.0,89119.0,0.24672302]
[1764972393410,0.0002,89120.0,89119.0,0.28437448]
[1764972393821,0.0002,89120.0,89119.0,0.29817448]
[1764972394972,0.0012,89120.0,89119.0,0.29817448]
[1764972395373,0.0012,89120.0,89119.0,0.3719164]
[1764972396578,0.0002,89120.0,89119.0,0.3719164]
[1764972396961,0.0002,89120.0,89119.0,0.3739164]
[1764972397185,0.0002,89120.0,89119.0,0.3729164]
[1764972397495,0.0002,89120.0,89119.0,0.3749164]
[1764972397857,0.0002,89120.0,89119.0,0.3769164]
[1764972399301,0.0002,89120.0,89119.0,1.5079454]
[1764972400321,0.0002,89120.0,89119.0,1.8309454]
[1764972400515,0.0002,89120.0,89119.0,1.9140756]
[1764972400715,0.0002,89130.0,89129.0,0.22439385]
[1764972400914,0.0002,89130.0,89129.0,0.47182083]
[1764972401137,0.0002,89130.0,89129.0,0.50338083]
[1764972401454,0.0002,89130.0,89129.0,0.50787046]
[1764972401962,0.0002,89130.0,89129.0,2.32471046]
[1764972402166,0.0002,89130.0,89129.0,2.32771046]
[1764972403228,0.0002,89130.0,89129.0,2.32571046]
[1764972403435,0.0002,89130.0,89129.0,2.32271046]
[1764972403635,0.0002,89130.0,89129.0,2.32671046]
[1764972404061,0.0002,89130.0,89129.0,2.17791046]
[1764972404614,0.0002,89130.0,89129.0,2.17591046]
[1764972404749,0.0002,89130.0,89129.0,2.17391046]
[1764972404963,0.0002,89130.0,89129.0,2.17691046]
[1764972405172,0.0002,89130.0,89129.0,2.17891046]
[1764972405850,0.0002,89130.0,89129.0,2.16115046]
[1764972406054,0.0002,89130.0,89129.0,2.17891046]
[1764972409820,0.0002,89130.0,89129.0,2.16115046]
[1764972409996,0.0002,89130.0,89129.0,2.32771046]
[1764972416488,0.00384722,89140.0,89129.0,2.32771046]
[1764972416723,0.00384722,89140.0,89139.0,2.66282888]
[1764972416959,0.00384722,89140.0,89139.0,2.68058888]
[1764972417169,0.00384722,89140.0,89139.0,2.69438888]
[1764972417406,0.00384722,89140.0,89139.0,2.69887792]
[1764972417938,0.00384722,89140.0,89139.0,2.70087792]
[1764972418350,0.00384722,89140.0,89139.0,2.84967792]
[1764972418549,0.0002,89160.0,89159.0,0.30914533]
[1764972418754,0.0002,89160.0,89159.0,1.78212833]
[1764972418983,0.0002,89160.0,89159.0,1.79592833]
[1764972419177,0.0002,89160.0,89159.0,1.8004171]
[1764972419944,0.0002,89160.0,89159.0,1.81725032]
[1764972420473,0.0002,89160.0,89159.0,1.81925032]
[1764972420822,0.0002,89160.0,89159.0,1.82125032]
[1764972421924,0.0002,89160.0,89159.0,0.71773432]
[1764972422140,0.0002,89160.0,89159.0,0.52427632]
[1764972422348,0.0002,89160.0,89159.0,0.37982732]
[1764972422992,0.0002,89160.0,89159.0,0.29950433]
[1764972423229,0.0002,89160.0,89159.0,0.27725556]
[1764972423403,0.0002,89160.0,89159.0,0.04013721]
[1764972423580,0.2261287,89160.0,89159.0,0.01783322]
[1764972424110,0.00242056,89160.0,89157.0,0.01121616]
[1764972424323,0.00242056,89160.0,89157.0,0.2355394]
[1764972424324,0.22612908,89160.0,89157.0,0.2355394]
[1764972424527,0.00054694,89158.0,89157.0,0.25784339]
[1764972425264,0.00215981,89158.0,89157.0,0.25784339]
[1764972426665,0.00215981,89158.0,89157.0,0.24662737]
[1764972427076,0.00215981,89158.0,89153.0,0.01121667]
[1764972427077,0.02000981,89158.0,89147.0,0.23556457]
[1764972427263,0.23555275,89152.0,89151.0,0.02230399]
[1764972427771,0.27626275,89152.0,89151.0,0.02230399]
[1764972428165,0.2766274,89152.0,89151.0,0.02230399]
[1764972429447,0.22436537,89141.0,89140.0,0.02230399]
[1764972429806,0.01121805,89142.0,89141.0,0.02230399]
[1764972430014,0.01147,89143.0,89140.0,0.23558364]
[1764972430221,0.01147,89143.0,89142.0,0.02230399]
[1764972430415,0.01147,89143.0,89142.0,0.24666512]
[1764972431020,0.01147,89143.0,89142.0,0.02230399]
[1764972431243,0.27653861,89143.0,89142.0,0.02230399]
[1764972432415,0.27753861,89143.0,89142.0,0.02230399]
[1764972433220,0.22436616,89140.0,89139.0,0.03913721]
[1764972433449,0.24021616,89140.0,89139.0,0.03913721]
[1764972433653,0.26507616,89140.0,89139.0,0.03913721]
[1764972435523,0.01121805,89142.0,89139.0,0.03913721]
[1764972435677,0.23582861,89143.0,89139.0,0.03913721]
[1764972435678,0.01121793,89143.0,89142.0,0.02230399]
[1764972435871,0.01121805,89142.0,89141.0,0.02230399]
[1764972436742,0.01121805,89142.0,89139.0,0.02805165]
[1764972436743,0.2355793,89142.0,89140.0,0.24667004]
[1764972436969,0.22436364,89141.0,89140.0,0.02230399]
[1764972437591,0.23657922,89142.0,89140.0,0.02230399]
[1764972438551,0.22436616,89140.0,89139.0,0.03913721]
[1764972438750,0.00099999,89130.0,89129.0,0.02230399]
[1764972439079,0.26393565,89130.0,89129.0,0.02242223]
[1764972439868,0.02831999,89130.0,89129.0,0.02342223]
[1764972440067,0.25271132,89130.0,89129.0,0.02342223]
[1764972440370,0.25271132,89130.0,89129.0,0.02242223]
[1764972440879,0.02831999,89130.0,89129.0,0.24681608]
[1764972442934,0.03031999,89130.0,89129.0,0.24681608]
[1764972444440,0.01446999,89130.0,89129.0,0.24681608]
[1764972446170,0.01446999,89130.0,89129.0,0.56981608]
[1764972446755,0.01446999,89130.0,89129.0,0.02242223]
[1764972447011,0.23886132,89130.0,89129.0,0.02242223]
[1764972447238,0.01446999,89130.0,89129.0,0.02242223]
[1764972447591,0.01446999,89130.0,89129.0,0.24681608]
[1764972447992,0.01446999,89130.0,89129.0,0.02242223]
[1764972449035,0.23886132,89130.0,89129.0,0.02242223]
[1764972449246,0.01446999,89130.0,89129.0,0.24681608]
[1764972452585,0.00299999,89130.0,89129.0,0.24681608]
[1764972456412,0.04200999,89130.0,89129.0,0.24681608]
[1764972456608,0.0310489,89130.0,89129.0,0.24681608]
[1764972457603,0.00299999,89130.0,89129.0,0.24681608]
[1764972459261,0.00299999,89130.0,89129.0,0.22451209]
[1764972459465,0.00299999,89130.0,89129.0,0.24681608]
[1764972468927,0.00299999,89130.0,89129.0,0.02242223]
[1764972469535,0.00299999,89130.0,89129.0,0.24681608]
[1764972469682,0.22739132,89130.0,89129.0,0.02242223]
[1764972470521,0.00299999,89130.0,89129.0,0.02242223]
[1764972470726,0.0310489,89130.0,89129.0,0.02242223]
[1764972471083,0.0310489,89130.0,89129.0,0.24681608]
[1764972471319,0.00299999,89130.0,89129.0,0.24681608]
[1764972472100,0.00299999,89130.0,89129.0,0.02242223]
[1764972472532,0.0310489,89130.0,89129.0,0.02242223]
[1764972473221,0.0310489,89130.0,89129.0,0.24681608]
[1764972473654,0.00299999,89130.0,89129.0,0.24681608]
[1764972478863,0.00299999,89130.0,89129.0,0.22451209]
[1764972478993,0.00299999,89130.0,89129.0,0.24681608]
[1764972481424,0.002,89130.0,89129.0,0.27441608]
[1764972481619,0.002,89130.0,89129.0,0.35469907]
[1764972481988,0.002,89130.0,89129.0,0.82649907]
[1764972482140,0.00119999,89160.0,89129.0,0.82649907]
[1764972482141,0.00119999,89160.0,89147.0,0.24665253]
[1764972482324,0.00119999,89160.0,89147.0,0.27798253]
[1764972482551,0.02923946,89160.0,89147.0,0.29155253]
[1764972483336,0.00124311,89148.0,89147.0,0.29155253]
[1764972483568,0.00024311,89148.0,89147.0,0.29155253]
[1764972483788,0.23293264,89162.0,89161.0,0.02230399]
[1764972484911,0.23293172,89162.0,89161.0,0.02230399]
[1764972485470,0.23552396,89163.0,89162.0,0.02230399]
[1764972486265,0.01121528,89164.0,89163.0,0.02230399]
[1764972486825,0.23552105,89164.0,89163.0,0.02230399]
[1764972488469,0.27666105,89164.0,89163.0,0.02230399]
[1764972488884,0.25293105,89164.0,89163.0,0.02230399]
[1764972489452,0.01741,89164.0,89163.0,0.02230399]
[1764972489662,0.01789611,89164.0,89163.0,0.02230399]
[1764972490002,0.01789611,89164.0,89163.0,0.24661227]
[1764972490222,0.00148611,89164.0,89163.0,0.26018227]
[1764972490435,0.00148611,89164.0,89163.0,0.27375227]
[1764972490566,0.00148611,89164.0,89163.0,0.65927526]
[1764972491687,0.00048611,89164.0,89163.0,0.65927526]
[1764972492304,0.00048611,89164.0,89163.0,0.66027526]
[1764972492720,0.00048611,89164.0,89163.0,0.66227526]
[1764972493523,0.00048611,89164.0,89163.0,0.66027526]
[1764972493785,0.00048611,89164.0,89163.0,0.66127526]
[1764972493944,0.00048611,89164.0,89163.0,0.66027526]
[1764972494354,0.00048611,89164.0,89163.0,0.66127526]
[1764972495722,0.00048611,89164.0,89163.0,0.58933227]
[1764972496029,0.00048611,89164.0,89163.0,0.60290227]
[1764972497057,0.00048611,89164.0,89163.0,0.24761227]
[1764972497251,0.04062611,89164.0,89163.0,0.24761227]
[1764972497650,0.01689611,89164.0,89163.0,0.24861227]
[1764972497865,0.00048611,89164.0,89163.0,0.24861227]
[1764972498060,0.00048611,89164.0,89163.0,0.24761227]